Cogmind - Beta 16.1 @@@ ROGUE MODE // 2026.04.26 @ 08:16:43 Player: coopco Result: Destroyed by U4-AK3(R) with Subdweller Laser Performance ------------- Evolutions (0) 0 Regions Visited (3) 600 Robots Destroyed (25) 125 Value Destroyed (566) 566 Prototype IDs (0) 0 Alien Tech Used (0) 0 Bonus (0) 0 TOTAL SCORE: 1291 Bonus ------- None Cogmind --------- Core Integrity 0/250 Matter 263/300 Energy 83/100 System Corruption 1% Temperature Cool (12) Movement Core (100) Ox1 Location -10/Subcaves Parts ------- > --- POWER (1) -------- (None) > --- PROPULSION (2) --- (None) > --- UTILITY (2) ------ Small Storage Unit > --- WEAPON (2) ------- (None) > --- INVENTORY (8) ---- Light Nuclear Core Flight Unit VTOL Module Huge Storage Unit Sensor Array Makeshift Terrain Scan Processor Peak State ------------ > --- POWER ------------ Light Nuclear Core > --- PROPULSION ------- VTOL Module VTOL Module > --- UTILITY ---------- Small Storage Unit Signal Interpreter > --- WEAPON ----------- Shotgun Shotgun > --- INVENTORY -------- Light Treads VTOL Module VTOL Module Huge Storage Unit Sensor Array Shotgun Mining Laser [Rating: 14] Favorites ----------- Power Improved Ion Engine Engine Improved Ion Engine Power Core Light Nuclear Core Propulsion Light Treads Treads Light Treads Flight Unit VTOL Module Utility Small Storage Unit Storage Small Storage Unit Processor Signal Interpreter Weapon Shotgun Energy Gun Medium Laser Ballistic Gun Shotgun Special Weapon Mining Laser Build | -11 -10 -10 -10 ------- Run | Yrd Mat Min Sub Slots Evolved . | . . . . Power . | . . . . Propulsion . | . . . . Utility . | . . . . Weapon . | . . . . Parts Attached 17 | 6 5 6 . Power 3 | 1 1 1 . Engine 2 | 1 1 . . Core 1 | . . 1 . Reactor . | . . . . Propulsion 6 | 2 . 4 . Treads 2 | 2 . . . Leg . | . . . . Wheel . | . . . . Hover . | . . . . Flight 4 | . . 4 . Utility 2 | 1 1 . . Device . | . . . . Storage 1 | 1 . . . Processor 1 | . 1 . . Hackware . | . . . . Protection . | . . . . Artifact . | . . . . Weapon 6 | 2 3 1 . Energy Gun 1 | 1 . . . Energy Cannon . | . . . . Ballistic Gun 4 | 1 2 1 . Ballistic Cannon . | . . . . Launcher . | . . . . Special Weapon 1 | . 1 . . Impact Weapon . | . . . . Slashing Weapon . | . . . . Piercing Weapon . | . . . . Special Melee Weapon . | . . . . Unidentified Prototypes . | . . . . Parts Lost 8 | . . 4 4 Power . | . . . . Propulsion 4 | . . 3 1 Utility 1 | . . 1 . Weapon 3 | . . . 3 Highest Loss Streak 4 | . . 2 4 To Critical Strikes 1 | . . . 1 Average Backups 6 | 2 7 7 6 Power . | . 1 . 1 Propulsion 3 | . 3 2 1 Utility 1 | . . 1 2 Weapon 1 | . 1 1 1 Tool/Special . | . . . . Unused Backups 10 | . 5 1 4 Power 3 | . 2 1 . Propulsion 3 | . 2 . 1 Utility 3 | . . . 3 Weapon 1 | . 1 . . Tool/Special . | . . . . Average Slot Usage (%) 81 | . 89 79 51 Engine 7 | . 14 1 . Core 3 | . . 7 . Treads 18 | . 28 12 . Flight 7 | . . 10 23 Storage 14 | . 14 14 14 Processor 6 | . 4 9 . Energy Gun 4 | . 9 . . Ballistic Gun 18 | . 16 22 11 Special Weapon 1 | . 1 . 1 Peak Build Rating 14 | 6 11 14 9 Average Rating 8 | 4 8 9 6 On Entrance 6 | . 6 11 7 Avg Prop Armor Cover (%) . | . . . . Naked Turns . | . . . . Heaviest Build 18 | 13 18 18 8 Greatest Support 40 | 40 40 40 8 Greatest Overweight (x) 1 | . . 1 1 Average Overweight (x) . | . . . . Largest Inventory Capacity 8 | 8 8 8 8 Average Capacity 7 | 7 8 8 8 Most Carried 8 | 4 8 8 7 Average Carried 6 | 2 7 7 6 Final Capacity 8 | 8 8 8 8 Final Carried 8 | 4 8 6 6 Class Distribution -------------------- 78% | Mutant 21% | Sprinter Dominant Class ---------------- Mutant | -10/Materials Mutant | -10/Mines Sprinter | -10/Subcaves Resources | -11 -10 -10 -10 ----------- Run | Yrd Mat Min Sub Matter Collected 708 | 243 203 250 12 Remotely . | . . . . Salvage Created 653 | . 289 318 46 Parts 42 | . 19 22 1 Haulers Intercepted . | . . . . Recyclers Shooed . | . . . . Parts Field Recycled . | . . . . Retrieved Matter . | . . . . Parts Self-Destructed 1 | . . . 1 Prevented . | . . . . Parts Restored . | . . . . Kills | -11 -10 -10 -10 ------- Run | Yrd Mat Min Sub Combat Hostiles Destroyed 25 | . 10 14 1 Guns 25 | . 10 14 1 Classes Destroyed 6 | . 3 2 1 Worker 1 | . . 1 . Watcher 1 | . 1 . . Swarmer 12 | . 4 8 . Grunt 10 | . 6 4 . Subdweller 1 | . . . 1 Assembled 2 | . . 2 . Best Kill Streak 7 | . 5 7 1 Combat Bots Only 7 | . 5 7 1 Max Kills in Single Turn 2 | . 1 2 1 Gunslinging . | . . . . Exploded . | . . . . Melee . | . . . . Uniques/NPCs Destroyed . | . . . . Combat | -11 -10 -10 -10 -------- Run | Yrd Mat Min Sub Hostile Shots Fired 134 | . 40 62 32 Missed 42 | . 6 24 12 Hits 92 | . 34 38 20 Melee 2 | . . 2 . Projectile 90 | . 34 36 20 AOE 2 | . . 2 . Critical Strikes 2 | . 1 . 1 Damage Taken 1278 | . 356 479 443 Core 267 | . 44 51 172 Absorbed by Shields . | . . . . Core Remaining (%) 100 | 100 . . . Volleys Fired 61 | . 28 25 8 Largest 2 | . 2 2 2 Hottest 100 | . 100 46 100 Shots Fired 112 | . 55 46 11 Gun 108 | . 54 46 8 Cannon . | . . . . Launcher . | . . . . Special 4 | . 1 . 3 Kinetic 96 | . 42 46 8 Thermal 16 | . 13 . 3 Explosive . | . . . . Electromagnetic . | . . . . Robot Hit Streak 10 | . 10 7 4 Robot Miss Streak 4 | . 3 4 2 Penetration Max . | . . . . Secondary Targets 4 | . 1 2 1 Max Gunslinging Chain 1 | . 1 1 1 Shots Hit Robots 77 | . 38 32 7 Core Hits 46 | . 19 23 4 Critical Kills . | . . . . Critical Parts Destroyed 1 | . 1 . . Critical Strikes 3 | . 3 . . Burn 2 | . 2 . . Destroy 1 | . 1 . . Melee Attacks . | . . . . Impact . | . . . . Slashing . | . . . . Piercing . | . . . . Sneak Attacks . | . . . . Combat Hostiles . | . . . . Follow-up Attacks . | . . . . Damage Inflicted 1084 | . 513 464 107 Guns 1080 | . 513 464 103 Cannons . | . . . . Explosions . | . . . . Melee . | . . . . Ramming 4 | . . . 4 Kinetic 941 | . 374 464 103 Thermal 139 | . 139 . . Explosive . | . . . . Electromagnetic . | . . . . Impact . | . . . . Slashing . | . . . . Piercing . | . . . . Highest Corruption 1 | . . 1 1 Average Corruption 1 | . . 1 1 Corruption Purged . | . . . . Corruption Blocked . | . . . . Effects 2 | . . 2 . Message Errors 2 | . . 2 . Overload Shots . | . . . . Overflow Damage . | . . . . Projectiles . | . . . . Explosions . | . . . . Melee . | . . . . Knockbacks 1 | . . . 1 Impact 1 | . . . 1 Kinetic . | . . . . Secondary . | . . . . Self-Inflicted Damage 2 | . . . 2 Shots . | . . . . Rammed 1 | . . . 1 Targets Rammed 1 | . . . 1 Kicked . | . . . . Crushed . | . . . . Highest Temperature 190 | . 190 17 . Average Temperature 52 | . 60 7 . Received Heat Transfer 321 | . 138 54 129 Siege Activations . | . . . . Martial Activations . | . . . . Shielding Activations . | . . . . Robots Disrupted . | . . . . Combat Hostiles . | . . . . Robots Corrupted . | . . . . Combat Hostiles . | . . . . Parts Fried . | . . . . Impact Corruptions . | . . . . Robots Melted . | . . . . Combat Hostiles . | . . . . Parts Melted 2 | . 2 . . Heat Transferred 555 | . 555 . . Parts Sabotaged . | . . . . Parts Stolen . | . . . . Parts Stripped . | . . . . Power Chain Reactions . | . . . . Alert | -11 -10 -10 -10 ------- Run | Yrd Mat Min Sub Maximum Alert Level . | . . . . Low Security (%) 100 | 100 100 100 . Level 1 . | . . . . Level 2 . | . . . . Level 3 . | . . . . Level 4 . | . . . . Level 5 . | . . . . High Security . | . . . . Max Security . | . . . . Peak Influence 175 | . 104 175 . Initial 40 | . . 40 . Average 51 | . 12 103 . Influence Increases 607 | . 252 355 . Destroy 0b10 Robot/C 440 | . 200 240 . Destroy 0b10 Robot/NC 10 | . 5 5 . Destroy Leader 82 | . 32 50 . Disable Machine 15 | . 15 . . Partial Spotted 45 | . . 45 . Lose Combat Pursuer 15 | . . 15 . Influence Decreases 607 | . 148 358 101 Entered New Map 117 | . . 64 53 Time Decay 450 | . 148 254 48 Lost Part 40 | . . 40 . Squads Dispatched 1 | . 1 . . Investigation . | . . . . Extermination . | . . . . Reinforcement 1 | . 1 . . Assault . | . . . . Garrison . | . . . . Intercept . | . . . . Searches Triggered . | . . . . Construction Impeded . | . . . . Haulers Reinforced . | . . . . Active Scanning Responses . | . . . . Cargo Convoy Interrupts . | . . . . Stealth | -11 -10 -10 -10 --------- Run | Yrd Mat Min Sub Distress Signals 2 | . 2 . . Communications Jammed . | . . . . Distress Signals . | . . . . Times Spotted 54 | . 18 28 8 Peak Tracking Total 6 | . 4 6 6 Tactical Retreats 5 | . . 4 1 Traps | -11 -10 -10 -10 ------- Run | Yrd Mat Min Sub Traps Triggered . | . . . . Indirectly . | . . . . Trap Hack Attempts . | . . . . Triggered . | . . . . Disarmed . | . . . . Reprogrammed . | . . . . Reused . | . . . . Traps Extracted . | . . . . Installed . | . . . . Triggered . | . . . . Machines | -11 -10 -10 -10 ---------- Run | Yrd Mat Min Sub Machines Disabled 1 | . 1 . . Max in Single Turn 1 | . 1 . . Machines Repaired . | . . . . Machines Dismantled . | . . . . Machines Sabotaged . | . . . . Overloaded Fab Kills . | . . . . Hacking | -11 -10 -10 -10 --------- Run | Yrd Mat Min Sub Machines Accessed 2 | . 2 . . Terminals 2 | . 2 . . Fabricators . | . . . . Repair Stations . | . . . . Recycling Units . | . . . . Scanalyzers . | . . . . Garrison Access . | . . . . Total Hacks 4 | . 4 . . Successful 1 | . 1 . . Failed 3 | . 3 . . Catastrophic 1 | . 1 . . Database Lockouts . | . . . . Manual 1 | . 1 . . Terminals 4 | . 4 . . Fabricators . | . . . . Repair Stations . | . . . . Recycling Units . | . . . . Scanalyzers . | . . . . Garrison Access . | . . . . Terminal Hacks 1 | . 1 . . Scanalyzer Index 1 | . 1 . . Fabricator Hacks . | . . . . Repair Station Hacks . | . . . . Recycling Unit Hacks . | . . . . Scanalyzer . | . . . . Garrison Access Hacks . | . . . . Unauthorized Hacks . | . . . . Terminals . | . . . . Fabricators . | . . . . Repair Stations . | . . . . Recycling Units . | . . . . Scanalyzers . | . . . . Garrison Access . | . . . . Data Cores Recovered . | . . . . Used . | . . . . Hacking Detections 2 | . 2 . . Full Trace Events . | . . . . Feedback Events . | . . . . Feedback Blocked . | . . . . Robot Schematics Acquired . | . . . . Robots Built . | . . . . Authchips . | . . . . Time . | . . . . Total Robot Build Rating . | . . . . Part Schematics Acquired . | . . . . Parts Built . | . . . . Authchips . | . . . . Time . | . . . . Total Part Build Rating . | . . . . Part Studies Acquired . | . . . . Parts Repaired . | . . . . Time . | . . . . Parts Recycled . | . . . . Recycled Matter . | . . . . Retrieved Matter . | . . . . Retrieved Components . | . . . . Parts Scanalyzed . | . . . . Part Schematics Acquired . | . . . . Parts Damaged . | . . . . Bothacking | -11 -10 -10 -10 ------------ Run | Yrd Mat Min Sub Used RIF Installer . | . . . . Robots Hacked . | . . . . Non-combat . | . . . . Combat . | . . . . Robot Hacks Applied . | . . . . Relay Couplers Released . | . . . . Fabnet Peak Effective % . | . . . . Robots Rewired . | . . . . Allies Hacked . | . . . . Hacks Repelled . | . . . . Allies | -11 -10 -10 -10 -------- Run | Yrd Mat Min Sub Total Allies . | . . . . Largest Group . | . . . . Highest-Rated Group . | . . . . Highest-Rated Ally . | . . . . Total Orders . | . . . . Ally Attacks . | . . . . Total Damage . | . . . . Kills . | . . . . Allies Corrupted . | . . . . Allies Melted . | . . . . Intel | -11 -10 -10 -10 ------- Run | Yrd Mat Min Sub Active Infowar (turns) . | . . . . Robot Analysis Total . | . . . . Derelict Logs Recovered 1 | . . 1 . Drone Launches . | . . . . Drone Recoveries . | . . . . Exploration | -11 -10 -10 -10 ------------- Run | Yrd Mat Min Sub Turns Passed 1419 | 83 636 549 151 Spaces Moved 1425 | 45 322 713 345 Core 4 | 1 . . 3 Treads 542 | 44 322 176 . Legs . | . . . . Wheels . | . . . . Hover . | . . . . Flight 879 | . . 537 342 Fastest Speed 32 | 50 160 32 32 Average Speed 81 | 157 160 63 34 Slowest Speed 160 | 160 160 160 115 Overloaded Moves . | . . . . Propulsion Burnouts . | . . . . Robots Hopped . | . . . . Potential Cave-ins . | . . . . Cave-ins Triggered . | . . . . Exploration Rate (%) 45 | 3 59 99 20 Regions Visited 3 Branch Regions 2 Pre-discovered Areas 1 | . . 1 . Known Exits Taken 1 | . 1 . . Unknown Exits Taken 2 | 1 . 1 . Scrap Searched 2 | . . 2 . Spaces Dug . | . . . . Terrain Destroyed . | . . . . Melee . | . . . . Projectile . | . . . . AOE . | . . . . Terrain Rammed . | . . . . Walls Destroyed . | . . . . Machines Disabled . | . . . . Actions | -11 -10 -10 -10 --------- Run | Yrd Mat Min Sub Total 1568 | 54 389 762 363 Wait 27 | . 17 7 3 Move 1422 | 44 321 712 345 Hop . | . . . . Pick Up 18 | 4 10 3 1 Fast Attach 8 | 6 2 . . Attach 8 | . . 5 3 Detach 4 | . . 2 2 Swap 6 | . 3 3 . Drop 13 | . 8 5 . Fire 61 | . 28 25 8 Melee . | . . . . Ram 1 | . . . 1 Kick . | . . . . Crush . | . . . . Escape Stasis . | . . . . Rewire . | . . . . Trap . | . . . . Miscellaneous . | . . . . Route ------- -11/Scrapyard -10/Materials (discovered 2 exits: *Mat / *Min) -10/Mines (discovered 3 exits: *Mat x2 / [*Sub]) -10/Subcaves (discovered 2 exits: [*Mat x2]) History --------- Turn | Location | Event 38 | -11/Scrapyard | Discovered new exit (range 15) 84 | -11/Scrapyard | Entered Materials 316 | -10/Materials | Build established: Mutant 325 | -10/Materials | Discovered new exit (range 14) 687 | -10/Materials | Discovered new exit (range 8) 718 | -10/Materials | Identified exit to Mines 720 | -10/Materials | Entered Mines 747 | -10/Mines | Destroyed 7 combat bots 777 | -10/Mines | Learned location of Zion (-7) 798 | -10/Mines | Discovered new exit (range 9) 809 | -10/Mines | Identified exit to Materials 864 | -10/Mines | Discovered exit to Materials (range 13) 965 | -10/Mines | Assembled infested the area 970 | -10/Mines | Assisted by a Guerilla fighting off Assembled 1267 | -10/Mines | Discovered new exit (range 6) 1269 | -10/Mines | Entered Subcaves 1275 | -10/Subcaves | Discovered new exit (range 12) 1360 | -10/Subcaves | Build established: Sprinter 1365 | -10/Subcaves | Discovered new exit (range 11) 1382 | -10/Subcaves | Ambushed by Subdwellers from Twisted Machinery 1394 | -10/Subcaves | Core integrity fell below 50% 1414 | -10/Subcaves | Core integrity fell below 20% 1420 | -10/Subcaves | Destroyed by U4-AK3(R) with Subdweller Laser Last Messages --------------- 01269_ T-07 Excavator is excavating. LOCATION=UNKNOWN AMBIENT_HEAT=-10 GOAL=ESCAPE 01275_ EXIT=FOUND 01369_ Acquired 12 matter. 01369_ Acquired Mak. Terrain Scan Processor. 01382_ B9-HMY(R) emerges from the Twisted Machinery. 01392_ Critical hit (Destroy). 01392_ Mining Laser destroyed. 01394_ VTOL Module destroyed. 01407_ WD-GMF(R) destroyed. 01407_ Switching to secondary target: B9-HMY(R). 01411_ Shotgun destroyed. 01416_ B9-HMY(R) affixes Scrap Shield Fragment to Scrap Shield. 01416_ Shotgun destroyed. 01420_ Slammed into U4-AK3(R). 01420_ U4-AK3(R) knocked back. Map ----- +----------------------------------------------------+ | ???????????????????#????????????????????????????? | | ???????????????????# ???????????????????????????? | | ??????????????????## ???????????????????????????? | | #?????????????????# #??????????????????????????? | | #?????????????????# ??????????#???????????????? | | ??????????????????# #######?? ##??????????????? | | #?????????????????# """"" ### ##?????????????? | | #?????????????????? " """ #?????????????? | | #???????????????????? " [ #?????????????? | | #?????????????????????#"" #?????????????? | | ?????????????????????##" "" #??????????????? | | ?????????????????????# "" #????????????????? | | ?????????????????????### "#????????????????? | | ??????????????????????# %""""""###??????????????? | | ?????????????????###### #### #??????????????? | | ?????????????????# ## #### #??????????????? | | ?????????????????# < """"" ##?????????????? | | ?????????????????# "" " #?????????????? | | ?????????????????# ## "" " #?????????????? | | #????????????????# #### """""""#?????????????? | | #????????????????# ##?##R ##""""???????????????? | | ##???????????????# #??# R"#?###????????????????? | | ##??############# #??# ""#????????????????????? | | #### ## # ##### ##????????????????????? | | ## ###R#?????????????????????? | | ##R@##????????????????????? | | ### ### ## # ### ! #????????????????????? | | ??####?###############?#####????????????????????? | | ????????????????????????????????????????????????? | | ????????????????????????????????????????????????? | | ????????????????????????????????????????????????? | | ????????????????????????????????????????????????? | | ????????????????????????????????????????????????? | | ????????????????????????????????????????????????? | | ????????????????????????????????????????????????? | | ????????????????????????????????????????????????? | | ????????????????????????????????????????????????? | | ????????????????????????????????????????????????? | | ????????????????????????????????????????????????? | | ????????????????????????????????????????????????? | | ????????????????????????????????????????????????? | | ????????????????????????????????????????????????? | | | | | | | | | | | | | | | | | +----------------------------------------------------+ Best States ------------- Heat Dissipation 25 Energy Generation 14 Energy Capacity 265 Matter Stores 300 Matter Capacity 300 Sight Range 16 Terrain Scan Density 10 Evasion (%) 63 Recoil Reduction 2 Item Schematics ----------------- None Robot Schematics ------------------ None Fabricated ------------ Nothing Repaired ---------- Nothing Studied --------- None Alien Tech Used ----------------- None Achievements -------------- None Challenges ------------ None Game ------ Seed MappingWarlordTearclaws Manual? 0 Play Time 00:24:59 Cumulative 24.2 hours Start 2026.04.26 @ 07:54:42 End 2026.04.26 @ 08:16:43 Sessions 1 Manual Loads 0 Difficulty Rogue Special Mode None Game No. 30 Rogue 30 Adventurer 0 Explorer 0 Win Type - Total 0 Types 0/0/0/0/0/0/0/0/0/0 Lore% 13 Gallery% 27 Achievement% 24 Wizard Run 0 Options --------- Layout 1 ASCII 0 Keyboard 0 Movement Mouse Keybinds 0 Fullscreen 2 Font 24/Smallcaps Map View 50x35 Zoom Use 0% Tactical HUD 1 Map Filters NONE Filters NONE Steam 1 RUN: 0eb51a6a-382a-4d3a-b472-77a894a97f89